[Event "*** Biggest EVER Titled Tuesday"]
[Site "Chess.com"]
[Date "2018.04.17"]
[Round "4"]
[White "GameOverBro"]
[Black "Marcus_Harvey"]
[Result "0-1"]
[WhiteElo "2446"]
[BlackElo "2627"]
[TimeControl "180+2"]
[EndTime "13:53:42 PDT"]
[Termination "Marcus_Harvey won by resignation"]

1. e4 {[%clk 0:03:01.9]} 1... e6 {[%clk 0:03:01.3]} 2. d4 {[%clk 0:03:02.7]}
2... d5 {[%clk 0:03:02.8]} 3. Nd2 {[%clk 0:03:04]} 3... a6 {[%clk 0:03:03.4]} 4.
Ngf3 {[%clk 0:03:04]} 4... Nf6 {[%clk 0:03:03.8]} 5. e5 {[%clk 0:03:02.3]} 5...
Nfd7 {[%clk 0:03:05]} 6. Bd3 {[%clk 0:03:02.9]} 6... c5 {[%clk 0:03:06.4]} 7. c3
{[%clk 0:03:04.2]} 7... Nc6 {[%clk 0:03:07.9]} 8. O-O {[%clk 0:03:05.1]} 8... g5
{[%clk 0:03:09.1]} 9. dxc5 {[%clk 0:02:28.6]} 9... Nxc5 {[%clk 0:03:09.3]} 10.
Nb3 {[%clk 0:02:22.4]} 10... g4 {[%clk 0:03:10.2]} 11. Nxc5 {[%clk 0:02:18.9]}
11... gxf3 {[%clk 0:03:03.6]} 12. Nb3 {[%clk 0:02:09.2]} 12... Nxe5 {[%clk
0:03:03.1]} 13. Re1 {[%clk 0:02:07.8]} 13... Qf6 {[%clk 0:02:58.5]} 14. Nd4
{[%clk 0:02:03.8]} 14... fxg2 {[%clk 0:02:49.9]} 15. f4 {[%clk 0:02:02]} 15...
Nxd3 {[%clk 0:02:44.5]} 16. Qxd3 {[%clk 0:02:03.6]} 16... Bd6 {[%clk 0:02:43.1]}
17. Nf5 {[%clk 0:01:45.4]} 17... Bc5+ {[%clk 0:02:20.5]} 18. Be3 {[%clk
0:01:45.4]} 18... Qxf5 {[%clk 0:01:56.5]} 19. Qxf5 {[%clk 0:01:45.3]} 19... exf5
{[%clk 0:01:58.4]} 20. Bxc5+ {[%clk 0:01:40.6]} 20... Be6 {[%clk 0:01:56.6]} 21.
Kxg2 {[%clk 0:01:38.8]} 21... Rg8+ {[%clk 0:01:52.7]} 22. Kf2 {[%clk 0:01:39]}
22... Rg4 {[%clk 0:01:48.9]} 23. Be3 {[%clk 0:01:36.8]} 23... Kd7 {[%clk
0:01:43.4]} 24. Rg1 {[%clk 0:01:36.3]} 24... a5 {[%clk 0:01:27.1]} 25. h3 {[%clk
0:01:35.8]} 25... Rg6 {[%clk 0:01:26.3]} 26. Rg5 {[%clk 0:01:18.9]} 26... a4
{[%clk 0:01:18.3]} 27. a3 {[%clk 0:01:16.9]} 27... Ra5 {[%clk 0:01:16.2]} 28.
Rag1 {[%clk 0:01:16]} 28... Rb5 {[%clk 0:01:16.5]} 29. Bc1 {[%clk 0:01:16.1]}
29... Kd6 {[%clk 0:01:07.1]} 30. h4 {[%clk 0:01:17.1]} 30... d4 {[%clk 0:00:50]}
31. cxd4 {[%clk 0:01:15.2]} 31... Kd5 {[%clk 0:00:50.9]} 32. h5 {[%clk
0:01:12.1]} 32... Rxg5 {[%clk 0:00:52]} 33. Rxg5 {[%clk 0:01:02.9]} 33... Ke4
{[%clk 0:00:48.9]} 34. Rg7 {[%clk 0:01:01]} 34... h6 {[%clk 0:00:50.1]} 35. Rh7
{[%clk 0:01:01.7]} 35... Rb3 {[%clk 0:00:49.5]} 36. Rxh6 {[%clk 0:01:02.1]}
36... Rf3+ {[%clk 0:00:48]} 37. Kg2 {[%clk 0:00:59.3]} 37... Rd3 {[%clk
0:00:47.7]} 38. Kf2 {[%clk 0:00:57.7]} 38... Rd1 {[%clk 0:00:42.3]} 39. Be3
{[%clk 0:00:57.9]} 39... Rb1 {[%clk 0:00:43.4]} 40. d5 {[%clk 0:00:42.7]} 40...
Bxd5 {[%clk 0:00:38.4]} 41. Rd6 {[%clk 0:00:43.6]} 41... Rxb2+ {[%clk
0:00:38.9]} 42. Kg3 {[%clk 0:00:44.5]} 42... Rb3 {[%clk 0:00:34.9]} 43. Kf2
{[%clk 0:00:43.5]} 43... Rxe3 {[%clk 0:00:30.1]} 44. Rxd5 {[%clk 0:00:44.1]}
44... Rxa3 {[%clk 0:00:28.3]} 45. Rb5 {[%clk 0:00:41.1]} 45... Kxf4 {[%clk
0:00:27.7]} 46. Rxb7 {[%clk 0:00:41.8]} 46... Ra2+ {[%clk 0:00:28.6]} 47. Kf1
{[%clk 0:00:42.1]} 47... Kf3 {[%clk 0:00:29]} 48. Kg1 {[%clk 0:00:42.4]} 48...
f4 {[%clk 0:00:27.3]} 49. h6 {[%clk 0:00:40.6]} 49... Rg2+ {[%clk 0:00:27.4]}
50. Kh1 {[%clk 0:00:41.3]} 50... Rg6 {[%clk 0:00:28.2]} 51. Rxf7 {[%clk
0:00:41.9]} 51... Rxh6+ {[%clk 0:00:29.3]} 52. Kg1 {[%clk 0:00:43.4]} 52... Ra6
{[%clk 0:00:30.3]} 53. Rc7 {[%clk 0:00:43.1]} 53... a3 {[%clk 0:00:31.3]} 54.
Rc1 {[%clk 0:00:44.5]} 54... a2 {[%clk 0:00:32.1]} 55. Ra1 {[%clk 0:00:46.4]}
55... Kg3 {[%clk 0:00:33.2]} 56. Kf1 {[%clk 0:00:48]} 56... f3 {[%clk
0:00:34.6]} 57. Kg1 {[%clk 0:00:49.5]} 57... Ra5 {[%clk 0:00:34.6]} 58. Kh1
{[%clk 0:00:50.5]} 58... Rh5+ {[%clk 0:00:35]} 59. Kg1 {[%clk 0:00:51.1]} 59...
f2+ {[%clk 0:00:36.6]} 60. Kf1 {[%clk 0:00:53]} 60... Rh1+ {[%clk 0:00:37.4]}
61. Ke2 {[%clk 0:00:54.9]} 61... Rxa1 {[%clk 0:00:38.7]} 0-1

[Event "*** Biggest EVER Titled Tuesday"]
[Site "Chess.com"]
[Date "2018.04.17"]
[Round "4"]
[White "DryCounty"]
[Black "Margency"]
[Result "0-1"]
[WhiteElo "2519"]
[BlackElo "2554"]
[TimeControl "180+2"]
[EndTime "13:53:48 PDT"]
[Termination "Margency won by resignation"]

1. e4 {[%clk 0:03:01.9]} 1... c5 {[%clk 0:02:58.4]} 2. Nf3 {[%clk 0:03:01.7]}
2... d6 {[%clk 0:02:59.5]} 3. c3 {[%clk 0:02:57.8]} 3... Nf6 {[%clk 0:02:59.3]}
4. Be2 {[%clk 0:02:58]} 4... Bd7 {[%clk 0:02:58.6]} 5. e5 {[%clk 0:02:57.9]}
5... dxe5 {[%clk 0:02:59.1]} 6. Nxe5 {[%clk 0:02:58.1]} 6... Nc6 {[%clk
0:03:00.6]} 7. Nxd7 {[%clk 0:02:58.4]} 7... Qxd7 {[%clk 0:03:02.2]} 8. d3 {[%clk
0:02:58]} 8... e6 {[%clk 0:03:02.2]} 9. O-O {[%clk 0:02:57.1]} 9... Be7 {[%clk
0:03:03.1]} 10. Be3 {[%clk 0:02:52.6]} 10... O-O {[%clk 0:03:02.7]} 11. Na3
{[%clk 0:02:36.8]} 11... Rad8 {[%clk 0:03:01.7]} 12. Qc2 {[%clk 0:02:34.6]}
12... Nd5 {[%clk 0:03:01.2]} 13. Bd2 {[%clk 0:02:18.9]} 13... Bf6 {[%clk
0:02:57.2]} 14. Rad1 {[%clk 0:02:18.6]} 14... Rfe8 {[%clk 0:02:51.3]} 15. Bc1
{[%clk 0:02:18.3]} 15... a6 {[%clk 0:02:48.6]} 16. Nc4 {[%clk 0:02:07]} 16... b5
{[%clk 0:02:47.9]} 17. Ne3 {[%clk 0:02:07.6]} 17... Nf4 {[%clk 0:02:45.4]} 18.
Ng4 {[%clk 0:02:07.9]} 18... Nxe2+ {[%clk 0:02:40.9]} 19. Qxe2 {[%clk 0:02:08]}
19... Be7 {[%clk 0:02:42.3]} 20. f4 {[%clk 0:01:56.8]} 20... Qd5 {[%clk
0:02:32.6]} 21. Ne3 {[%clk 0:01:50.2]} 21... Qxa2 {[%clk 0:02:31.4]} 22. Qf3
{[%clk 0:01:42.7]} 22... Na5 {[%clk 0:02:09.9]} 23. f5 {[%clk 0:01:23.9]} 23...
Bf8 {[%clk 0:01:59.3]} 24. f6 {[%clk 0:01:21]} 24... g6 {[%clk 0:01:48.7]} 25.
Ng4 {[%clk 0:01:20.4]} 25... Qd5 {[%clk 0:01:37.6]} 26. Qf4 {[%clk 0:01:10.6]}
26... e5 {[%clk 0:01:31.9]} 27. Qg5 {[%clk 0:00:58.8]} 27... Nb3 {[%clk
0:01:13]} 28. Rf3 {[%clk 0:00:48.7]} 28... Nxc1 {[%clk 0:01:07.8]} 29. Rxc1
{[%clk 0:00:39.7]} 29... e4 {[%clk 0:01:03.9]} 30. Nh6+ {[%clk 0:00:30.5]} 30...
Kh8 {[%clk 0:01:04.3]} 31. dxe4 {[%clk 0:00:21.4]} 31... Rxe4 {[%clk 0:00:46.9]}
32. Rcf1 {[%clk 0:00:08.7]} 32... Qe6 {[%clk 0:00:29.9]} 33. Rh3 {[%clk
0:00:05.7]} 33... Rd5 {[%clk 0:00:26]} 34. Nf5 {[%clk 0:00:05]} 34... Rxf5
{[%clk 0:00:23.1]} 35. Rxf5 {[%clk 0:00:04.3]} 35... Qxf5 {[%clk 0:00:23.8]} 36.
Qxf5 {[%clk 0:00:04.1]} 36... gxf5 {[%clk 0:00:24.6]} 37. Rd3 {[%clk 0:00:05.4]}
37... Kg8 {[%clk 0:00:24]} 38. Rd5 {[%clk 0:00:06.7]} 38... c4 {[%clk
0:00:23.8]} 39. Rxf5 {[%clk 0:00:08.1]} 39... h6 {[%clk 0:00:24.3]} 40. h3
{[%clk 0:00:08.8]} 40... Kh7 {[%clk 0:00:25.5]} 41. g4 {[%clk 0:00:07.8]} 41...
Kg6 {[%clk 0:00:26.6]} 42. Kg2 {[%clk 0:00:08.5]} 42... Re6 {[%clk 0:00:27.5]}
43. Rd5 {[%clk 0:00:07.8]} 43... Rxf6 {[%clk 0:00:28.5]} 44. Kg3 {[%clk
0:00:09]} 44... Rd6 {[%clk 0:00:29.6]} 45. Rf5 {[%clk 0:00:08.5]} 45... Rd2
{[%clk 0:00:30.4]} 46. h4 {[%clk 0:00:08.7]} 46... f6 {[%clk 0:00:30.6]} 47. h5+
{[%clk 0:00:09.4]} 47... Kf7 {[%clk 0:00:31.5]} 48. Rf3 {[%clk 0:00:06.9]} 48...
Bd6+ {[%clk 0:00:32.1]} 49. Kh4 {[%clk 0:00:06.1]} 49... Rh2+ {[%clk 0:00:33.2]}
50. Rh3 {[%clk 0:00:07.1]} 50... Rxh3+ {[%clk 0:00:34.3]} 51. Kxh3 {[%clk
0:00:08.4]} 51... a5 {[%clk 0:00:35.6]} 0-1

[Event "*** Biggest EVER Titled Tuesday"]
[Site "Chess.com"]
[Date "2018.04.17"]
[Round "4"]
[White "Raffael89"]
[Black "gmtalentoso"]
[Result "1-0"]
[WhiteElo "2133"]
[BlackElo "2158"]
[TimeControl "180+2"]
[EndTime "13:53:51 PDT"]
[Termination "Raffael89 won by checkmate"]

1. e4 {[%clk 0:03:01.9]} 1... c5 {[%clk 0:02:57.8]} 2. Nc3 {[%clk 0:03:01.5]}
2... Nc6 {[%clk 0:02:58]} 3. f4 {[%clk 0:02:59.5]} 3... g6 {[%clk 0:02:54.5]} 4.
Nf3 {[%clk 0:03:00.7]} 4... Bg7 {[%clk 0:02:55.8]} 5. Bb5 {[%clk 0:03:02.1]}
5... Nd4 {[%clk 0:02:54.7]} 6. O-O {[%clk 0:03:01.7]} 6... Nxb5 {[%clk
0:02:52.4]} 7. Nxb5 {[%clk 0:03:03.6]} 7... Nf6 {[%clk 0:02:45.7]} 8. d3 {[%clk
0:03:02.6]} 8... d6 {[%clk 0:02:39.3]} 9. Qe1 {[%clk 0:03:01.5]} 9... Bg4 {[%clk
0:02:34.2]} 10. Kh1 {[%clk 0:02:48.6]} 10... O-O {[%clk 0:02:20.5]} 11. Qh4
{[%clk 0:02:48.2]} 11... Bxf3 {[%clk 0:02:08]} 12. Rxf3 {[%clk 0:02:47.6]} 12...
e6 {[%clk 0:02:01.3]} 13. Rh3 {[%clk 0:02:34.8]} 13... a6 {[%clk 0:01:54.4]} 14.
Nc3 {[%clk 0:02:34.1]} 14... Nh5 {[%clk 0:01:46.9]} 15. Qf2 {[%clk 0:02:33.4]}
15... Bd4 {[%clk 0:01:42.4]} 16. Be3 {[%clk 0:02:28.3]} 16... Qf6 {[%clk
0:01:38.5]} 17. g4 {[%clk 0:02:09]} 17... Bxe3 {[%clk 0:01:26.6]} 18. Qxe3
{[%clk 0:02:02.7]} 18... Nxf4 {[%clk 0:01:21]} 19. Rf3 {[%clk 0:01:56.6]} 19...
e5 {[%clk 0:01:21.5]} 20. Ne2 {[%clk 0:01:47.6]} 20... g5 {[%clk 0:01:17.5]} 21.
Ng3 {[%clk 0:01:48.9]} 21... Rac8 {[%clk 0:01:05]} 22. c4 {[%clk 0:01:44.7]}
22... b5 {[%clk 0:01:00.1]} 23. b3 {[%clk 0:01:45.2]} 23... bxc4 {[%clk
0:01:00.5]} 24. dxc4 {[%clk 0:01:47.1]} 24... a5 {[%clk 0:01:00.2]} 25. Rd1
{[%clk 0:01:45.5]} 25... a4 {[%clk 0:00:59.2]} 26. Nf5 {[%clk 0:01:46.2]} 26...
axb3 {[%clk 0:00:56.9]} 27. axb3 {[%clk 0:01:38.6]} 27... Rfd8 {[%clk
0:00:57.2]} 28. Rf2 {[%clk 0:01:22.9]} 28... Ra8 {[%clk 0:00:53.2]} 29. Rfd2
{[%clk 0:01:19.4]} 29... Ra6 {[%clk 0:00:47.4]} 30. b4 {[%clk 0:01:19.2]} 30...
cxb4 {[%clk 0:00:46.6]} 31. c5 {[%clk 0:01:19.7]} 31... Ra3 {[%clk 0:00:43.7]}
32. Qf2 {[%clk 0:01:04.8]} 32... b3 {[%clk 0:00:29]} 33. c6 {[%clk 0:00:53.4]}
33... d5 {[%clk 0:00:20.6]} 34. Qc5 {[%clk 0:00:42.9]} 34... Ra2 {[%clk
0:00:19.5]} 35. c7 {[%clk 0:00:40.9]} 35... Rc8 {[%clk 0:00:15.1]} 36. Ne7+
{[%clk 0:00:41.7]} 36... Kg7 {[%clk 0:00:15.7]} 37. Nxc8 {[%clk 0:00:42.1]}
37... b2 {[%clk 0:00:16.4]} 38. Nb6 {[%clk 0:00:32.9]} 38... b1=Q {[%clk
0:00:16.9]} 39. Rxb1 {[%clk 0:00:33.2]} 39... Rxd2 {[%clk 0:00:17.6]} 40. c8=Q
{[%clk 0:00:21.5]} 40... Ne6 {[%clk 0:00:18.2]} 41. Qe3 {[%clk 0:00:11.2]} 41...
Ra2 {[%clk 0:00:14.7]} 42. Nd7 {[%clk 0:00:08.4]} 42... Qh6 {[%clk 0:00:14.7]}
43. Qg3 {[%clk 0:00:07.3]} 43... dxe4 {[%clk 0:00:12.1]} 44. Qxe5+ {[%clk
0:00:08.1]} 44... Kg6 {[%clk 0:00:12.8]} 45. Qf6# {[%clk 0:00:07.3]} 1-0

[Event "*** Biggest EVER Titled Tuesday"]
[Site "Chess.com"]
[Date "2018.04.17"]
[Round "4"]
[White "SloLev"]
[Black "Cocaino74"]
[Result "1/2-1/2"]
[WhiteElo "2378"]
[BlackElo "2141"]
[TimeControl "180+2"]
[EndTime "13:54:00 PDT"]
[Termination "Game drawn by agreement"]

1. e4 {[%clk 0:03:01.9]} 1... c5 {[%clk 0:03:01.4]} 2. c3 {[%clk 0:03:02.4]}
2... Nf6 {[%clk 0:03:01.9]} 3. e5 {[%clk 0:03:03.7]} 3... Nd5 {[%clk 0:03:03.4]}
4. d4 {[%clk 0:03:05.4]} 4... cxd4 {[%clk 0:03:05.3]} 5. Nf3 {[%clk 0:03:06.9]}
5... d6 {[%clk 0:03:06]} 6. cxd4 {[%clk 0:03:08.2]} 6... Nc6 {[%clk 0:03:07.3]}
7. Bc4 {[%clk 0:03:08.5]} 7... Nb6 {[%clk 0:03:08.2]} 8. Bb5 {[%clk 0:03:10.1]}
8... dxe5 {[%clk 0:03:09]} 9. Nxe5 {[%clk 0:03:11.9]} 9... Bd7 {[%clk
0:03:10.5]} 10. Nxd7 {[%clk 0:03:13.4]} 10... Qxd7 {[%clk 0:03:12.4]} 11. Be3
{[%clk 0:03:08.2]} 11... g6 {[%clk 0:03:10.8]} 12. O-O {[%clk 0:02:40.8]} 12...
Bg7 {[%clk 0:03:11.6]} 13. Nc3 {[%clk 0:02:34.4]} 13... O-O {[%clk 0:03:11.7]}
14. d5 {[%clk 0:02:20.6]} 14... Bxc3 {[%clk 0:03:12.1]} 15. dxc6 {[%clk
0:02:17.1]} 15... Qxd1 {[%clk 0:03:01.7]} 16. Rfxd1 {[%clk 0:01:53]} 16... bxc6
{[%clk 0:02:53.3]} 17. Bxc6 {[%clk 0:01:13.6]} 17... Bxb2 {[%clk 0:02:19.5]} 18.
Rab1 {[%clk 0:01:12.4]} 18... Rac8 {[%clk 0:02:20]} 19. Bd7 {[%clk 0:00:52.6]}
19... Nxd7 {[%clk 0:01:21.3]} 20. Rxd7 {[%clk 0:00:54.5]} 20... Rfd8 {[%clk
0:01:03.6]} 21. Rxa7 {[%clk 0:00:44.1]} 21... Rc1+ {[%clk 0:00:21.3]} 22. Rxc1
{[%clk 0:00:43.9]} 22... Bxc1 {[%clk 0:00:21.8]} 23. Kf1 {[%clk 0:00:40.7]}
23... Bxe3 {[%clk 0:00:20.7]} 24. fxe3 {[%clk 0:00:42.6]} 24... Rd2 {[%clk
0:00:18.7]} 25. a4 {[%clk 0:00:40.2]} 25... e5 {[%clk 0:00:15.9]} 26. h3 {[%clk
0:00:29.6]} 26... Kg7 {[%clk 0:00:16.7]} 27. a5 {[%clk 0:00:28.7]} 27... h5
{[%clk 0:00:14.6]} 28. Ra6 {[%clk 0:00:26.5]} 28... Ra2 {[%clk 0:00:14.3]} 29.
Ra8 {[%clk 0:00:24.1]} 29... Kf6 {[%clk 0:00:14.5]} 30. a6 {[%clk 0:00:24.5]}
30... Kf5 {[%clk 0:00:14.5]} 31. Kg1 {[%clk 0:00:19.8]} 31... Ke4 {[%clk
0:00:12.2]} 32. a7 {[%clk 0:00:14.5]} 32... Kxe3 {[%clk 0:00:05.2]} 33. Re8
{[%clk 0:00:15.9]} 33... Rxa7 {[%clk 0:00:04.7]} 34. Rxe5+ {[%clk 0:00:17.4]}
34... Kf4 {[%clk 0:00:06.2]} 35. Re1 {[%clk 0:00:18.7]} 35... Ra2 {[%clk
0:00:07.3]} 36. Rf1+ {[%clk 0:00:20.3]} 36... Kg3 {[%clk 0:00:04.7]} 37. Rf3+
{[%clk 0:00:21.2]} 37... Kh4 {[%clk 0:00:06.1]} 38. Rxf7 {[%clk 0:00:23.1]}
38... g5 {[%clk 0:00:06.9]} 39. Rf2 {[%clk 0:00:18.2]} 39... Ra1+ {[%clk
0:00:05.5]} 40. Kh2 {[%clk 0:00:19.2]} 40... Ra3 {[%clk 0:00:06]} 41. Rb2 {[%clk
0:00:19.1]} 41... g4 {[%clk 0:00:06.9]} 42. hxg4 {[%clk 0:00:19.2]} 42... hxg4
{[%clk 0:00:07.7]} 43. Rb4 {[%clk 0:00:12.6]} 43... Rc3 {[%clk 0:00:06.4]} 44.
Ra4 {[%clk 0:00:13.1]} 44... Rb3 {[%clk 0:00:07.6]} 45. Rc4 {[%clk 0:00:13.7]}
45... Ra3 {[%clk 0:00:09]} 46. Rb4 {[%clk 0:00:13.7]} 46... Rc3 {[%clk
0:00:10.1]} 47. Ra4 {[%clk 0:00:13]} 47... Re3 {[%clk 0:00:11.7]} 48. Rb4 {[%clk
0:00:13.6]} 1/2-1/2

[Event "*** Biggest EVER Titled Tuesday"]
[Site "Chess.com"]
[Date "2018.04.17"]
[Round "4"]
[White "WarlordX"]
[Black "DiogenesSinopeus"]
[Result "0-1"]
[WhiteElo "2275"]
[BlackElo "2422"]
[TimeControl "180+2"]
[EndTime "13:54:01 PDT"]
[Termination "DiogenesSinopeus won by resignation"]

1. Nf3 {[%clk 0:03:01.9]} 1... Nf6 {[%clk 0:03:00.8]} 2. d3 {[%clk 0:03:02.9]}
2... d5 {[%clk 0:02:59.8]} 3. g3 {[%clk 0:03:04.2]} 3... c5 {[%clk 0:03:01]} 4.
Bg2 {[%clk 0:03:05.6]} 4... Nc6 {[%clk 0:03:02.6]} 5. O-O {[%clk 0:03:06.9]}
5... e5 {[%clk 0:03:04.2]} 6. Nbd2 {[%clk 0:03:07.9]} 6... Bg4 {[%clk
0:03:01.6]} 7. h3 {[%clk 0:03:08.7]} 7... Bh5 {[%clk 0:03:02.5]} 8. e4 {[%clk
0:03:08]} 8... d4 {[%clk 0:03:00.5]} 9. a3 {[%clk 0:03:05.9]} 9... Nd7 {[%clk
0:02:53.7]} 10. Qe1 {[%clk 0:03:01.8]} 10... Be7 {[%clk 0:02:50.3]} 11. Nh2
{[%clk 0:03:01.6]} 11... f6 {[%clk 0:02:43.7]} 12. f4 {[%clk 0:03:01.3]} 12...
O-O {[%clk 0:02:32.8]} 13. g4 {[%clk 0:03:00]} 13... Bf7 {[%clk 0:02:33.6]} 14.
f5 {[%clk 0:03:01.6]} 14... b5 {[%clk 0:02:32.8]} 15. h4 {[%clk 0:03:01.8]}
15... c4 {[%clk 0:02:32.4]} 16. Qg3 {[%clk 0:03:02.2]} 16... c3 {[%clk 0:02:31]}
17. Ndf3 {[%clk 0:03:00.3]} 17... cxb2 {[%clk 0:02:05.9]} 18. Bxb2 {[%clk
0:03:02.2]} 18... b4 {[%clk 0:02:04.1]} 19. g5 {[%clk 0:02:59.9]} 19... bxa3
{[%clk 0:02:00]} 20. Bxa3 {[%clk 0:02:58.7]} 20... Bxa3 {[%clk 0:02:00.4]} 21.
Rxa3 {[%clk 0:03:00.6]} 21... Kh8 {[%clk 0:01:47.1]} 22. g6 {[%clk 0:02:34.3]}
22... Bg8 {[%clk 0:01:40.7]} 23. gxh7 {[%clk 0:02:28.5]} 23... Bxh7 {[%clk
0:01:35.8]} 24. Bh3 {[%clk 0:02:10.2]} 24... a5 {[%clk 0:01:36.5]} 25. Bg4
{[%clk 0:02:10.1]} 25... Qe7 {[%clk 0:01:38]} 26. Raa1 {[%clk 0:02:08.2]} 26...
a4 {[%clk 0:01:36.7]} 27. Bh5 {[%clk 0:02:09.5]} 27... Rfb8 {[%clk 0:01:33.7]}
28. Qg4 {[%clk 0:02:08.8]} 28... Nf8 {[%clk 0:01:31.3]} 29. Bg6 {[%clk
0:02:09.4]} 29... a3 {[%clk 0:01:20.1]} 30. Qh5 {[%clk 0:02:02.6]} 30... a2
{[%clk 0:01:20.9]} 31. Bf7 {[%clk 0:02:00.2]} 31... Nb4 {[%clk 0:01:08.8]} 32.
Bb3 {[%clk 0:01:57.2]} 32... Rc8 {[%clk 0:01:00.3]} 33. Rf2 {[%clk 0:01:55.9]}
33... Ra7 {[%clk 0:00:58.6]} 34. Ng4 {[%clk 0:01:52]} 34... Qe8 {[%clk
0:00:56.2]} 35. Qxe8 {[%clk 0:01:23.2]} 35... Rxe8 {[%clk 0:00:58.1]} 36. h5
{[%clk 0:01:23.6]} 36... Bg8 {[%clk 0:00:50.4]} 37. h6 {[%clk 0:01:25.1]} 37...
Bxb3 {[%clk 0:00:47.2]} 38. cxb3 {[%clk 0:01:27]} 38... Rc8 {[%clk 0:00:42.8]}
39. hxg7+ {[%clk 0:00:42]} 39... Kxg7 {[%clk 0:00:37.2]} 40. Ne1 {[%clk
0:00:23.9]} 40... Rc3 {[%clk 0:00:31.4]} 41. Rb2 {[%clk 0:00:23.6]} 41... Nd7
{[%clk 0:00:29]} 42. Kf2 {[%clk 0:00:23.5]} 42... Nc5 {[%clk 0:00:29.9]} 43. Ke2
{[%clk 0:00:21.6]} 43... Nxb3 {[%clk 0:00:31]} 44. Raxa2 {[%clk 0:00:17.2]}
44... Rxa2 {[%clk 0:00:29.4]} 45. Rxa2 {[%clk 0:00:18.7]} 45... Nxa2 {[%clk
0:00:31.3]} 46. Nf2 {[%clk 0:00:17.2]} 46... Nb4 {[%clk 0:00:27.5]} 47. Nd1
{[%clk 0:00:17.3]} 47... Rc1 {[%clk 0:00:25.3]} 48. Nf2 {[%clk 0:00:17.8]} 48...
Ra1 {[%clk 0:00:25.4]} 49. Ng4 {[%clk 0:00:16.5]} 49... Ra2+ {[%clk 0:00:26.5]}
50. Kf3 {[%clk 0:00:17.9]} 50... Nc2 {[%clk 0:00:27.7]} 51. Ng2 {[%clk
0:00:17.3]} 51... Ne3 {[%clk 0:00:26.7]} 52. N2xe3 {[%clk 0:00:18]} 52... dxe3
{[%clk 0:00:28]} 53. Kxe3 {[%clk 0:00:19.9]} 53... Nd4 {[%clk 0:00:28.9]} 0-1

[Event "*** Biggest EVER Titled Tuesday"]
[Site "Chess.com"]
[Date "2018.04.17"]
[Round "4"]
[White "kikoveiga"]
[Black "Caterpiller35"]
[Result "1-0"]
[WhiteElo "2194"]
[BlackElo "2227"]
[TimeControl "180+2"]
[EndTime "13:54:06 PDT"]
[Termination "kikoveiga won by resignation"]

1. e4 {[%clk 0:03:01.9]} 1... c5 {[%clk 0:03:00.6]} 2. Nf3 {[%clk 0:03:01.1]}
2... g6 {[%clk 0:02:55.4]} 3. d4 {[%clk 0:03:01.4]} 3... cxd4 {[%clk 0:02:57.3]}
4. Nxd4 {[%clk 0:03:02.7]} 4... Bg7 {[%clk 0:02:58.2]} 5. Nc3 {[%clk 0:03:03.4]}
5... Nc6 {[%clk 0:02:59]} 6. Be3 {[%clk 0:03:04.6]} 6... Nf6 {[%clk 0:02:59.7]}
7. Bc4 {[%clk 0:03:02.8]} 7... O-O {[%clk 0:02:59.3]} 8. Bb3 {[%clk 0:03:02.5]}
8... d6 {[%clk 0:02:53.1]} 9. f3 {[%clk 0:03:02.8]} 9... Bd7 {[%clk 0:02:51.6]}
10. Qd2 {[%clk 0:03:03.9]} 10... Qa5 {[%clk 0:02:52.2]} 11. O-O-O {[%clk
0:03:02.7]} 11... Rfc8 {[%clk 0:02:50]} 12. Kb1 {[%clk 0:02:58.4]} 12... Ne5
{[%clk 0:02:50]} 13. h4 {[%clk 0:02:59.3]} 13... Rxc3 {[%clk 0:02:50.1]} 14.
Qxc3 {[%clk 0:02:57.6]} 14... Qxc3 {[%clk 0:02:50.9]} 15. bxc3 {[%clk
0:02:59.5]} 15... Rc8 {[%clk 0:02:47.8]} 16. Kb2 {[%clk 0:02:44.9]} 16... b5
{[%clk 0:02:47.9]} 17. Ne2 {[%clk 0:02:33.5]} 17... a5 {[%clk 0:02:44.5]} 18. a3
{[%clk 0:02:32.4]} 18... Nc4+ {[%clk 0:01:52.3]} 19. Bxc4 {[%clk 0:02:32.8]}
19... Rxc4 {[%clk 0:01:54.1]} 20. Bd4 {[%clk 0:02:33.3]} 20... h5 {[%clk
0:01:45.9]} 21. Ng3 {[%clk 0:02:20.6]} 21... Bc6 {[%clk 0:01:42.4]} 22. Nf1
{[%clk 0:02:21.1]} 22... b4 {[%clk 0:01:32.1]} 23. cxb4 {[%clk 0:01:59.1]} 23...
axb4 {[%clk 0:01:26.7]} 24. Kb3 {[%clk 0:01:49.8]} 24... Bb5 {[%clk 0:00:18.7]}
25. Ne3 {[%clk 0:01:39]} 25... Rxd4 {[%clk 0:00:04]} 26. Rxd4 {[%clk 0:01:40.9]}
26... bxa3 {[%clk 0:00:05.3]} 27. c4 {[%clk 0:01:37.9]} 27... Bc6 {[%clk
0:00:05.3]} 28. Rd2 {[%clk 0:01:34.1]} 28... Nd7 {[%clk 0:00:06]} 29. Kxa3
{[%clk 0:01:27.3]} 29... Bh6 {[%clk 0:00:06.6]} 30. Re2 {[%clk 0:01:24.9]} 30...
Ne5 {[%clk 0:00:06.9]} 31. Nd5 {[%clk 0:01:23.9]} 31... Nxc4+ {[%clk 0:00:07.2]}
32. Kb4 {[%clk 0:01:25.3]} 32... Bxd5 {[%clk 0:00:08.3]} 33. exd5 {[%clk
0:01:27.2]} 33... Ne5 {[%clk 0:00:09.3]} 34. Ra1 {[%clk 0:01:23.4]} 34... Bf4
{[%clk 0:00:09.1]} 35. Kc3 {[%clk 0:01:20]} 35... Kg7 {[%clk 0:00:10.1]} 36. Ra7
{[%clk 0:01:18.9]} 36... Kf6 {[%clk 0:00:10.4]} 37. Kd4 {[%clk 0:01:19.2]} 37...
g5 {[%clk 0:00:11.2]} 38. hxg5+ {[%clk 0:01:19.8]} 38... Bxg5 {[%clk 0:00:11.7]}
39. Ke4 {[%clk 0:01:19.8]} 39... Ng6 {[%clk 0:00:10.3]} 40. g3 {[%clk
0:01:19.8]} 40... h4 {[%clk 0:00:10.6]} 41. f4 {[%clk 0:01:21]} 41... Bh6 {[%clk
0:00:11.7]} 42. g4 {[%clk 0:01:15.4]} 42... Bxf4 {[%clk 0:00:10.5]} 43. Rf2
{[%clk 0:01:16.5]} 43... Kg5 {[%clk 0:00:10.5]} 44. Rxf4 {[%clk 0:01:13.3]}
44... Nxf4 {[%clk 0:00:10.6]} 45. Rxe7 {[%clk 0:01:14.4]} 45... h3 {[%clk
0:00:11.2]} 46. Rxf7 {[%clk 0:01:11.8]} 46... Ng6 {[%clk 0:00:11.8]} 47. Rf1
{[%clk 0:01:01.2]} 47... Kxg4 {[%clk 0:00:12.4]} 48. Rg1+ {[%clk 0:01:02.4]}
48... Kh5 {[%clk 0:00:11]} 49. Rg3 {[%clk 0:00:51.6]} 49... h2 {[%clk
0:00:02.3]} 50. Rh3+ {[%clk 0:00:51.5]} 50... Kg4 {[%clk 0:00:03.6]} 51. Rxh2
{[%clk 0:00:53.4]} 51... Ne5 {[%clk 0:00:03.7]} 52. Rg2+ {[%clk 0:00:53.3]}
52... Kh5 {[%clk 0:00:04.2]} 53. Rg8 {[%clk 0:00:55.2]} 53... Kh4 {[%clk
0:00:04.1]} 54. Rd8 {[%clk 0:00:55.2]} 54... Nc4 {[%clk 0:00:05.3]} 55. Kd4
{[%clk 0:00:54.6]} 55... Ne5 {[%clk 0:00:03.5]} 56. Rxd6 {[%clk 0:00:55.2]}
56... Nf3+ {[%clk 0:00:04.8]} 57. Kc5 {[%clk 0:00:55]} 1-0